Cogmind - Beta 9.4 @@@ ROGUE MODE // 2020.03.31 @ 18:16:07 Player: Torako Result: Destroyed by G-50 Soldier with Heavy Laser Performance ------------- Evolutions (2) 1000 Regions Visited (3) 600 Robots Destroyed (15) 75 Value Destroyed (264) 264 Prototype IDs (0) 0 Alien Tech Used (0) 0 Bonus (0) 0 TOTAL SCORE: 1939 Bonus ------- None Cogmind --------- Core Integrity 0/550 Matter 227/300 Energy 100/100 System Corruption 0% Temperature Cool (9) Movement Walking (120) Location -8/Materials Parts ------- > --- POWER (2) -------- Backup Power I Backup Power I > --- PROPULSION (4) --- Improved Carbon-fiber Leg Improved Carbon-fiber Leg > --- UTILITY (3) ------ Advanced Signal Interpreter > --- WEAPON (2) ------- Backup Laser I Backup Laser I > --- INVENTORY (4) ---- Small Storage Unit Advanced Signal Interpreter Advanced Terrain Scanner Peak State ------------ > --- POWER ------------ (None) > --- PROPULSION ------- Improved Carbon-fiber Leg Improved Carbon-fiber Leg Improved Carbon-fiber Leg Improved Carbon-fiber Leg > --- UTILITY ---------- Advanced Signal Interpreter > --- WEAPON ----------- Heavy Laser > --- INVENTORY -------- Small Storage Unit Advanced Signal Interpreter Advanced Terrain Scanner [Rating: 23] Favorites ----------- Power Ion Engine Engine Ion Engine Propulsion Aluminum Leg Leg Aluminum Leg Wheel Wheel Flight Unit Flight Unit Utility Small Storage Unit Storage Small Storage Unit Processor Signal Interpreter Weapon Assault Rifle Energy Gun EM Pulse Gun Ballistic Gun Assault Rifle Launcher Mini Grenade Launcher Build | -11 -10 -9 -8 ------- Run | Scr Mat Mat Mat Slots Evolved 4 | . . 2 2 Power 1 | . . 1 . Propulsion 2 | . . 1 1 Utility 1 | . . . 1 Weapon . | . . . . Parts Attached 19 | . 4 4 11 Power 1 | . . . 1 Engine 1 | . . . 1 Core . | . . . . Reactor . | . . . . Propulsion 11 | . 2 3 6 Treads . | . . . . Leg 6 | . 2 . 4 Wheel 1 | . . . 1 Hover . | . . . . Flight 4 | . . 3 1 Utility 2 | . 1 1 . Device . | . . . . Storage . | . . . . Processor 2 | . 1 1 . Hackware . | . . . . Protection . | . . . . Artifact . | . . . . Weapon 5 | . 1 . 4 Energy Gun 2 | . . . 2 Energy Cannon . | . . . . Ballistic Gun 2 | . 1 . 1 Ballistic Cannon . | . . . . Launcher 1 | . . . 1 Special Weapon . | . . . . Impact Weapon . | . . . . Slashing Weapon . | . . . . Piercing Weapon . | . . . . Special Melee Weapon . | . . . . Unidentified Prototypes . | . . . . Parts Lost 14 | . 2 1 11 Power 1 | . . . 1 Propulsion 8 | . 1 1 6 Utility . | . . . . Weapon 5 | . 1 . 4 Highest Loss Streak 11 | . 1 1 11 Average Slot Usage (%) 70 | . 77 81 39 Engine 10 | . 14 9 3 Leg 15 | . 23 8 9 Flight 6 | . . 18 6 Storage 11 | . 14 11 5 Processor 7 | . 4 11 9 Energy Gun 3 | . 5 . 3 Ballistic Gun 14 | . 15 22 3 Naked Turns . | . . . . Heaviest Build 13 | 13 13 12 7 Greatest Support 72 | 20 20 20 72 Greatest Overweight (x) 2 | . 1 . 2 Average Overweight (x) . | . . . . Largest Inventory Capacity 6 | . 6 6 6 Average Capacity 5 | . 6 6 5 Most Carried 6 | . 6 6 6 Average Carried 5 | . 5 5 4 Final Capacity 6 | 6 6 6 4 Final Carried 6 | 6 5 6 3 Class Distribution -------------------- 100% | Mutant Dominant Class ---------------- Mutant | -10/Materials Mutant | -9/Materials Mutant | -8/Materials Resources | -11 -10 -9 -8 ----------- Run | Scr Mat Mat Mat Matter Collected 352 | 200 108 . 44 Remotely . | . . . . Salvage Created 323 | . 275 . 48 Parts 27 | . 19 . 8 Haulers Intercepted . | . . . . Recyclers Shooed . | . . . . Parts Field Recycled . | . . . . Retrieved Matter . | . . . . Parts Self-Destructed . | . . . . Prevented . | . . . . Kills | -11 -10 -9 -8 ------- Run | Scr Mat Mat Mat Combat Hostiles Destroyed 14 | . 10 . 4 Guns 12 | . 10 . 2 AOE 2 | . . . 2 Classes Destroyed 3 | . 2 . 1 Builder 1 | . . . 1 Swarmer 10 | . 6 . 4 Grunt 4 | . 4 . . Best Kill Streak 4 | . 4 . 4 Combat Bots Only 4 | . 4 . 3 Max Kills in Single Turn 3 | . 1 . 3 Gunslinging . | . . . . Exploded 2 | . . . 2 Melee . | . . . . Uniques/NPCs Destroyed . | . . . . Combat | -11 -10 -9 -8 -------- Run | Scr Mat Mat Mat Damage Taken 2047 | . 376 157 1514 Core 686 | . 90 37 559 Absorbed by Shields . | . . . . Core Remaining (%) 84 | 100 64 90 . Volleys Fired 48 | . 35 . 13 Largest 2 | . 2 . 2 Hottest 69 | . 60 . 69 Shots Fired 77 | . 57 . 20 Gun 76 | . 57 . 19 Cannon . | . . . . Launcher 1 | . . . 1 Special . | . . . . Kinetic 41 | . 38 . 3 Thermal 13 | . . . 13 Explosive 1 | . . . 1 Electromagnetic 22 | . 19 . 3 Robot Hit Streak 8 | . 7 . 8 Robot Miss Streak 3 | . 3 . 3 Penetration Max . | . . . . Secondary Targets . | . . . . Shots Hit Robots 50 | . 36 . 14 Core Hits 25 | . 15 . 10 Critical Hits . | . . . . Critical Kills . | . . . . Critical Parts Destroyed . | . . . . Melee Attacks . | . . . . Impact . | . . . . Slashing . | . . . . Piercing . | . . . . Sneak Attacks . | . . . . Combat Hostiles . | . . . . Follow-up Attacks . | . . . . Damage Inflicted 851 | . 423 . 428 Guns 599 | . 423 . 176 Cannons . | . . . . Explosions 243 | . . . 243 Melee . | . . . . Ramming 9 | . . . 9 Kinetic 267 | . 244 . 23 Thermal 121 | . . . 121 Explosive 243 | . . . 243 Electromagnetic 211 | . 179 . 32 Impact . | . . . . Slashing . | . . . . Piercing . | . . . . Highest Corruption . | . . . . Average Corruption . | . . . . Corruption Purged . | . . . . Overload Shots . | . . . . Overflow Damage 9 | . . . 9 Projectiles . | . . . . Explosions 9 | . . . 9 Melee . | . . . . Knockbacks . | . . . . Impact . | . . . . Kinetic . | . . . . Secondary . | . . . . Self-Inflicted Damage 45 | . . . 45 Shots 1 | . . . 1 Rammed 2 | . . . 2 Targets Rammed 5 | . . . 5 Kicked 3 | . . . 3 Crushed . | . . . . Highest Temperature 84 | . 84 4 54 Average Temperature 31 | . 38 2 21 Received Heat Transfer 771 | . 132 72 567 Siege Activations . | . . . . Robots Corrupted . | . . . . Combat Hostiles . | . . . . Parts Fried . | . . . . Impact Corruptions . | . . . . Robots Melted . | . . . . Combat Hostiles . | . . . . Parts Melted . | . . . . Heat Transferred 370 | . . . 370 Parts Sabotaged . | . . . . Parts Stolen . | . . . . Parts Stripped . | . . . . Power Chain Reactions . | . . . . Missiles Intercepted . | . . . . Alert | -11 -10 -9 -8 ------- Run | Scr Mat Mat Mat Peak Influence 279 | . 279 203 215 Average Influence 158 | . 157 163 156 Maximum Alert Level 1 | . 1 1 1 Low Security (%) 69 | . 47 87 92 Level 1 30 | . 52 12 7 Level 2 . | . . . . Level 3 . | . . . . Level 4 . | . . . . Level 5 . | . . . . High Security . | . . . . Max Security . | . . . . Squads Dispatched 4 | . 1 2 1 Investigation 1 | . . 1 . Extermination . | . . . . Reinforcement 3 | . 1 1 1 Assault . | . . . . Garrison . | . . . . Intercept . | . . . . Construction Impeded . | . . . . Haulers Reinforced . | . . . . Stealth | -11 -10 -9 -8 --------- Run | Scr Mat Mat Mat Distress Signals 3 | . 1 1 1 Communications Jammed . | . . . . Distress Signals . | . . . . Times Spotted 45 | . 14 15 16 Peak Tracking Total 12 | . 4 8 12 Tactical Retreats 3 | . . 2 1 Traps | -11 -10 -9 -8 ------- Run | Scr Mat Mat Mat Traps Triggered . | . . . . Indirectly . | . . . . Trap Hack Attempts . | . . . . Triggered . | . . . . Disarmed . | . . . . Reprogrammed . | . . . . Reused . | . . . . Traps Extracted . | . . . . Installed . | . . . . Triggered . | . . . . Machines | -11 -10 -9 -8 ---------- Run | Scr Mat Mat Mat Machines Disabled 1 | . . . 1 Max in Single Turn 1 | . . . 1 Machines Sabotaged . | . . . . Garrisons Compromised . | . . . . Overloaded Fab Kills . | . . . . Fab Network Shutdowns . | . . . . Hacking | -11 -10 -9 -8 --------- Run | Scr Mat Mat Mat Machines Accessed 8 | . 2 2 4 Terminals 7 | . 2 2 3 Fabricators . | . . . . Repair Stations 1 | . . . 1 Recycling Units . | . . . . Scanalyzers . | . . . . Garrison Access . | . . . . Total Hacks 26 | . 6 7 13 Successful 13 | . 3 2 8 Failed 13 | . 3 5 5 Catastrophic 3 | . . 2 1 Database Lockouts . | . . . . Manual 25 | . 6 7 12 Terminals 25 | . 6 7 12 Fabricators . | . . . . Repair Stations 1 | . . . 1 Recycling Units . | . . . . Scanalyzers . | . . . . Garrison Access . | . . . . Terminal Hacks 2 | . . . 2 Terminal Index 1 | . . . 1 Recall Reinforcements 1 | . . . 1 Fabricator Hacks . | . . . . Repair Station Hacks 1 | . . . 1 Refit 1 | . . . 1 Recycling Unit Hacks . | . . . . Scanalyzer . | . . . . Garrison Access Hacks . | . . . . Unauthorized Hacks 24 | . 8 4 12 Terminals 10 | . 3 2 5 Track 2 | . . . 2 Assimilate 1 | . 1 . . Botnet 7 | . 2 2 3 Fabricators . | . . . . Repair Stations . | . . . . Recycling Units . | . . . . Scanalyzers . | . . . . Garrison Access . | . . . . Data Cores Recovered . | . . . . Used . | . . . . Hacking Detections 6 | . 2 2 2 Full Trace Events 2 | . . 2 . Feedback Events . | . . . . Feedback Blocked . | . . . . Robot Schematics Acquired . | . . . . Robots Built . | . . . . Matter . | . . . . Time . | . . . . Total Robot Build Rating . | . . . . Part Schematics Acquired . | . . . . Parts Built . | . . . . Matter . | . . . . Time . | . . . . Total Part Build Rating . | . . . . Parts Repaired . | . . . . Time . | . . . . Parts Recycled . | . . . . Recycled Matter . | . . . . Retrieved Matter . | . . . . Retrieved Components . | . . . . Parts Scanalyzed . | . . . . Part Schematics Acquired . | . . . . Parts Damaged . | . . . . Bothacking | -11 -10 -9 -8 ------------ Run | Scr Mat Mat Mat Used RIF Installer . | . . . . Robots Hacked . | . . . . Non-combat . | . . . . Combat . | . . . . Robot Hacks Applied . | . . . . Relay Couplers Released . | . . . . Robots Rewired . | . . . . Allies Hacked . | . . . . Hacks Repelled . | . . . . Allies | -11 -10 -9 -8 -------- Run | Scr Mat Mat Mat Total Allies 1 | . 1 . . Largest Group 1 | . 1 . . Highest-Rated Group 10 | . 10 . . Highest-Rated Ally 10 | . 10 . . Total Orders . | . . . . Ally Attacks . | . . . . Total Damage . | . . . . Kills . | . . . . Allies Corrupted . | . . . . Allies Melted . | . . . . Intel | -11 -10 -9 -8 ------- Run | Scr Mat Mat Mat Robot Analysis Total . | . . . . Derelict Logs Recovered . | . . . . Drone Launches . | . . . . Drone Recoveries . | . . . . Exploration | -11 -10 -9 -8 ------------- Run | Scr Mat Mat Mat Turns Passed 678 | . 325 197 156 Spaces Moved 683 | 1 154 346 182 Core 28 | . . . 28 Treads . | . . . . Legs 235 | 1 154 61 19 Wheels . | . . . . Hover . | . . . . Flight 420 | . . 285 135 Fastest Speed 34 | 120 120 34 37 Average Speed 67 | 120 126 49 52 Slowest Speed 150 | 120 150 120 150 Overloaded Moves . | . . . . Propulsion Burnouts . | . . . . Robots Hopped 7 | . . 5 2 Cave-ins Triggered . | . . . . Exploration Rate (%) 21 | 2 34 26 25 Regions Visited 3 Branch Regions . Pre-discovered Areas . | . . . . Known Exits Taken 2 | . 1 1 . Unknown Exits Taken 1 | 1 . . . Scrap Searched . | . . . . Spaces Dug . | . . . . Terrain Destroyed 8 | . . . 8 Melee . | . . . . Projectile . | . . . . AOE 8 | . . . 8 Actions | -11 -10 -9 -8 --------- Run | Scr Mat Mat Mat Total 815 | . 231 366 218 Wait 45 | . 28 15 2 Move 667 | . 153 335 179 Hop 6 | . . 5 1 Pick Up 11 | . 5 4 2 Fast Attach 9 | . 2 . 7 Attach 6 | . 1 1 4 Detach 1 | . . . 1 Swap 4 | . 1 3 . Drop 13 | . 6 3 4 Fire 48 | . 35 . 13 Melee . | . . . . Ram . | . . . . Kick 5 | . . . 5 Crush . | . . . . Escape Stasis . | . . . . Rewire . | . . . . Trap . | . . . . Miscellaneous . | . . . . Route ------- -11/Scrapyard -10/Materials -9/Materials -8/Materials History --------- Turn | Location | Event 1 | -11/Scrapyard | Discovered new exit (range 0) 1 | -11/Scrapyard | Entered Materials 311 | -10/Materials | Build established: Mutant 312 | -10/Materials | Discovered new exit (range 9) 325 | -10/Materials | Identified exit to Materials 326 | -10/Materials | Entered another Materials area 326 | -9/Materials | Evolved 2 slots: Power x1, Propulsion x1 514 | -9/Materials | Discovered new exit (range 16) 523 | -9/Materials | Identified exit to Materials 523 | -9/Materials | Entered another Materials area 523 | -8/Materials | Evolved 2 slots: Propulsion x1, Utility x1 607 | -8/Materials | Core integrity fell below 50% 651 | -8/Materials | Core integrity fell below 20% 679 | -8/Materials | Destroyed by G-50 Soldier with Heavy Laser Last Messages --------------- U-05 Engineer builds a Wall. Flight Unit destroyed. K-01 Serf collects debris. Acquired Imp. Carbon-fiber Leg. Acquired Hvy. Laser. S-10 Pest destroyed. Hvy. Laser destroyed. Slammed into G-47 Trooper. Destabilizing: Core damaged (-22). Acquired 10 matter. Slammed into G-47 Trooper. Kicked G-47 Trooper out of the way. Imp. Carbon-fiber Leg destroyed. Kicked W-25 Informer out of the way. Connecting with Repair Station... >>Refit Scanning configuration... Attaching: Backup Power I x2 Backup Laser I x2 Map ----- +----------------------------------------------------+ | | | | | | | ?????????????????????????????????????????????????? | | ?????????????????????????????????????????????????? | | ####?????????????????????????????????????????????? | | #?????????????????????????????????????????????? | | #?????????????????????????????????????????????? | | [ #??????????????????########???????????????????? | | #??????????????????# #???????????????????? | | ???????????????????# #???????????????????? | | ?????????????######## #???????????????????? | | ?????????????#!! [# #???????????????????? | | ??????????????#!! [[# #???????????????????? | | ???????????##### #? ????????????????????? | | ############"T"# ####+###########???????????? | | ^ #???????????? | | ^ #???????????? | | ] " r #?#######???? | | ###### T ##+######+####### #? = !! #???? | | #?# " # ??# #?# # !!#????? | | "" #?# # # #?# # #????? | | "" #?# # """ #""" #?# + "T" #????? | | "" #?# # """ #"Rgg #?#u # """k#????? | | "" #?# """ # """ #"""g #?# #! #????? | | #?#! """"" # #@ggY !#?#=| #?######????? | | = #?# """"" #################u =#???????????? | | ## """"" #???????# w* ##??????????? | | ## / """ ???????# """ #?###??????? | | ## ?? ##??????# """ * ####T##### | | ## ?? #???????# " #% | | ###?# #?####+###???????# # | | ????? ?????????????????##### ## | | ?????????????????????????????###?##k########### | | ?????????????????????????????????? ??????????? | | ??????????????????????????????????""" ???????????? | | ????????????????????????????????Y?""" ??????????? | | ??????????????????????????????????""" ??????????? | | ?????????????????????????????????? ?????????? | | ????????????????????????????????????? ! ????????? | | ??????????????????????????????????????#?#????????? | | ?????????????????????????????????????????????????? | | ?????????????????????????????????????????????????? | | ?????????????????????????????????????????????????? | | ?????????????????????????????????????????????????? | | ?????????????????????????????????????????????????? | | ?????????????????????????????????????????????????? | | ?????????????????????????????????????????????????? | | ?????????????????????????????????????????????????? | | ?????????????????????????????????????????????????? | +----------------------------------------------------+ Best States ------------- Heat Dissipation 31 Energy Generation 14 Energy Capacity 250 Matter Stores 300 Matter Capacity 300 Sight Range 16 Terrain Scan Density 10 Evasion (%) 63 Item Schematics ----------------- None Robot Schematics ------------------ None Fabricated ------------ Nothing Alien Tech Used ----------------- None Achievements -------------- None Challenges ------------ None Game ------ Seed ChipMeleeSheargun Manual? 0 Play Time 00:15:46 Cumulative 159.5 hours Start 2020.03.31 @ 18:04:14 End 2020.03.31 @ 18:16:07 Sessions 1 Manual Loads 0 Difficulty Rogue Special Mode None Game No. 186 Rogue 186 Adventurer 0 Explorer 0 Win Type - Total 4 Types 4/0/0/0/0/0/0 Lore% 67 Gallery% 80 Achievement% 57 Wizard Run 0 Options --------- ASCII 0 Keyboard 1 Movement Numpad Keybinds 0 Fullscreen 1 Font 20/SmallcapsGlow Map View 66x50 Tactical HUD 1 Map Filters NONE Filters NONE Steam 1 RUN: b2131f44-069e-4efc-b686-53cd920b0406